{"text_format":"1","workbook":"xlsx","n_sheets":5,"sheets":["Árlista","Munka2","Munka3","Munka4","Munka5"],"not_rendered":{"charts":0,"images":13,"macros":1,"external_links":0,"defined_names":5,"comments":0,"pivot_tables":0},"unopened":[],"bounds":{"document_bytes":16777216,"sheet_cells":100000,"rows_first":2000,"rows_last":500,"rows_between":2000,"halvings":0,"cell_chars":16384,"cell_head_chars":4096},"cells_cut":0,"cells_raw":0,"read":"whole","date_system":"1900"}

{"sheet":"Árlista","index":0,"n_rows":493,"n_cols":8,"rows_kept":493,"cut":false,"hidden":false,"merged":[[493,0,497,7],[2,2,2,7],[8,0,8,2],[4,3,4,7],[3,0,3,2],[5,0,5,2],[7,0,7,2],[6,3,6,7],[4,0,4,2],[7,3,7,7],[8,3,8,7],[6,0,6,2],[9,3,9,7]]}
[]
[]
["2019 szeptember                                           Legfrissebb árlistánk letöltehető:",null,"www.tisztitoszer-depo.hu/xls/vofaarlista.xlsm"]
["megrendelő neve:",null,null,"ügyintéző, telefonszám, e-mail cím:"]
[]
["szállítási cím:",null,null,"fizetés módja:"]
[]
["számlázási cím (ha eltér):",null,null,"szállítás időpontja:"]
[]
["Eddigi vásárlás összege (bruttó):",{"$f":"SUM(H490)","v":0},null,{"$f":"H490","v":0}]
["Megnevezés","megjegyzés (méret, szín, stb.)","db/karton","netto ár","brutto ár","rendel db","rendel karton","érték össz."]
["A CC Commerce bőrbarát folyékony szappan 5 lit (shea vaj)","12","1",1190,null,null,null,{"$f":"SUM(D12*F12)+(D12*C12*G12)","v":0}]
["A CC Sofia felmosószer kocentrátum 5L  (rózsa-citrus illat)","1","1",1190,null,null,null,0]
["Ablaklehúzó gumi, szivacsos, teleszkópos nyéllel","1","1",795,null,null,null,0]
["Ablaklehúzó nagy 35 cm, nyelezhető","1","1",445,null,null,null,0]
["Air Freshener  aer. légfrissítő  300ml","6","12",259,null,null,null,0]
["Air Wick aqua mist légfissítő hajtógáz nélkül 345 ml ","4","8",749,null,null,null,0]
["Air Wick FreshMatic automata légrissítő  készülék + 1 db utánt.","15","4",1760,null,null,null,0]
["Air Wick FreshMatic utántöltő 250 ml","2","6",795,null,null,null,0]
["Air Wick légfrissitô aer. 240 ml","16","6",425,null,null,null,0]
["Ajax általános tisztítószer 1 liter","1","12",479,null,null,null,0]
["Ajax fürdömester fürdőszobai tisztító 500 ml pumpás","24","12",648,null,null,null,0]
["Alufólia 100 méter , 29 cm széles","3","10",1475,null,null,null,0]
["ALUFÓLIA 20m","1","60",269,null,null,null,0]
["ALUFÓLIA 30 méter ","1","25",440,null,null,null,0]
["Amodent fogkrém nagy 100ml","30","24",243,null,null,null,0]
["Anakonda munkavéd. krém 100ml","1","30",339,null,null,null,0]
["Antisztatikus portörlő, pókhálózó teleszkópos","1","1",423,null,null,null,0]
["ARIEL 1,4  kg Compact mosópor 20 mosásos","25","10",1395,null,null,null,0]
["ARIEL 2,8 kg  Compact mosópor 40 mosásos","1","4",2140,null,null,null,0]
["Ariel active gél kapszula 28 db-os","6","3",2260,null,null,null,0]
["Ariel folyékony 1,1 l-es mosószer (20 mosás)","12","4",1380,null,null,null,0]
["Ariel gél folyékony mosószer 40 mosás (2,2 lit)","12","4",2195,null,null,null,0]
["ATRIX krém Soft hidratáló 100ml","10","12",460,null,null,null,0]
["Autómosó kefe, műa. nyéllel, műszálas","60","10",350,null,null,null,0]
["Baba  hajsampon 400ml, könnymentes","60","6",539,null,null,null,0]
["Baba foly. szappan  pumpás 250ml","50","6",393,null,null,null,0]
["Baba tusfürdő 400ml","12","6",495,null,null,null,0]
["Babaszappan lanolinos    125gr","30","48",129,null,null,null,0]
["Billenős szemetes  9 literes (intum kuka) 25x19x36 cm","1","1",840,null,null,null,0]
["Billenős szemetes 16 l-es 30x23x44cm ","24","1",1800,null,null,null,0]
["Billenős szemetes 26 literes 35x28x53cm ","24","1",1920,null,null,null,0]
["Billenős szemetes 50 l-es 42x34,5x68cm ","24","1",3300,null,null,null,0]
["Billenős szemetes extra, 4 literes (kicsi intim kuka) 20x15x28cm ","18","1",590,null,null,null,0]
["BIOPON áztató 500 gr","24","20",545,null,null,null,0]
["Biopon Takarékos mosógél 1,32 liter (20 mosás)","10","8",880,null,null,null,0]
["Biopon takarékos mosógél 60 mosás (3 liter)","3","4",2360,null,null,null,0]
["Biopon Takarékos mosópor 40 mosás (2,8kg)","4","5",1790,null,null,null,0]
["BOGI popsitörlő sensitive, antiallergén 80 db-os, visszazárható","4","24",349,null,null,null,0]
["Bonus  dörzslap, lapsúroló 5db-os","12","40",119,null,null,null,0]
["Bonus Alukróm felmosó nyél 130 cm","10","12",230,null,null,null,0]
["Bonus Dörzsi formázott szivacs   (9,5*6,5*4,5cm)  10 db!","6","10",350,null,null,null,0]
["Bonus drót mosogató csutak  3 db-os","6","10",129,null,null,null,0]
["Bonus edénysúroló 3 db -os műanyag","6","10",129,null,null,null,0]
["Bonus extra hosszú (38 cm), vastag gumikesztyű L méret","6","50",495,null,null,null,0]
["Bonus extra hosszú (38 cm), vastag gumikesztyű M méret","48","50",495,null,null,null,0]
["Bonus extra hosszú (38 cm), vastag gumikesztyű S méret","1","50",495,null,null,null,0]
["Bonus felmosókendő szintetikus 50*60cm","1","30",189,null,null,null,0]
["Bonus fürdőszivacs 3 db-os (14*9*3,5 cm/db)","1","18",149,null,null,null,0]
["Bonus góliát fémsúroló 80gr (12 cm átmérő)","1","5",288,null,null,null,0]
["Bonus Ideal mosogató-szivacskendő, virágmintás  (20x18 cm) , 2 db","1","20",225,null,null,null,0]
["Bonus inox maxi spirál fémsúroló 30 gr","4","100",119,null,null,null,0]
["Bonus karcmentes nagy súrolószivacs 1/1 (teflonra is)  (13x9x4,5 cm) ","20","48",119,null,null,null,0]
["Bonus karcmentes súrolószivacs 2 db (teflonra is) (9,6*7,1*4,5cm)","6","32",119,null,null,null,0]
["Bonus kockás mosogatókendő viszkóz 5 db-os","4","25",185,null,null,null,0]
["Bonus MicroMop, új mikroszálas technológia, szallagos","24","21",625,null,null,null,0]
["Bonus mikroszálas ablaktörlőkendő (35x35 cm)","10","50",265,null,null,null,0]
["Bonus mikroszálas padlótörlő kendő (50x60 cm)","32","20",575,null,null,null,0]
["Bonus mikroszálas univerzális kendő (35x35 cm)","5","40",259,null,null,null,0]
["Bonus mosogató kendô (szivacsos) 3db","10","20",195,null,null,null,0]
["Bonus mosogatószivacs (8*5*3cm) 10db-os","10","20",134,null,null,null,0]
["Bonus ovális felmosóvödör csavarókosárra 18L","10","1",980,null,null,null,0]
["Bonus Pro erős üvegszálas nyél 140cm (csavaros és lyukkal ellátott)","10","12",835,null,null,null,0]
["Bonus SupraMOP felmosófej, szallagos,sárga mintás","10","24",279,null,null,null,0]
["BONUS szappanos fémpárna 10 db-os","32","48",249,null,null,null,0]
["Bonus törlőkendő univerzális (38x38cm) 3db-os","10","20",139,null,null,null,{"$f":"SUM(D76*F76)+(D76*C76*G76)","v":0}]
["Bonus Twisted EcoMop fej, csavart, szintetikus, viszkóz","10","40",236,null,null,null,0]
["Bonus UNI premium perforált kendő (38x38 cm) 3 db","35","25",209,null,null,null,0]
["Bonus+ DUO karcmentes mosogatószivacs 2/1","40","28",195,null,null,null,0]
["BonusPro felmosó fej pamut L-es 150gr","5","45",210,null,null,null,0]
["BonusPRO mikroszálas kendő kék  (32x32) 10db!","10","5",1696,null,null,null,0]
["BonusPRO mikroszálas kendő piros  (32x32) 10db!","40","5",1696,null,null,null,0]
["BonusPRO mikroszálas kendő sárga  (32x32) 10db!","25","5",1696,null,null,null,0]
["BonusPRO mikroszálas kendő zöld  (32x32) 10db!","25","5",1696,null,null,null,0]
["BonusPRO pamut Mop fej XL-190 gr","40","40",245,null,null,null,0]
["BonusPRO pamut Mop fej XXL - 300g","48","50",425,null,null,null,0]
["BonusPRO SoftMOP viszkóz Mop fej XL -160gr","25","24",259,null,null,null,0]
["BREF duo aktív illatosító gél 2 fázisú kosárral 60ml","40","8",380,null,null,null,0]
["Bref power aktív golyós 3*50 gr (3 db-os)","16","9",799,null,null,null,0]
["BREF power aktív golyós WC illatosító, kosaras","10","10",382,null,null,null,0]
["BREF WC tisztitó power gél  750ml","12","12",395,null,null,null,0]
["Brekk WC illatosító gél 200ml +akasztós  kosár","10","10",289,null,null,null,0]
["BRISE (Glade) One Touch  légfrissítő utántölő 3*30 ml","12","8",1099,null,null,null,0]
["Brise (Glade) One Touch készülék + 1 db utántöltő","12","6",620,null,null,null,0]
["BRISE aer.légfrissítők 300ml","1","12",595,null,null,null,0]
["BRISE légfrissítő gél 3 féle illatban 150gr","18","12",429,null,null,null,0]
["CC Bioccid fertőtlenítő felmosószer 1 liter","1","8",990,null,null,null,0]
["CC Bioccid fertőtlenítő felmosószer 5 l","8","1",4860,null,null,null,0]
["CC Cleanex zsír- olajoldó felmosószer 10 liter","8","1",7600,null,null,null,0]
["CC Cleanex zsír- olajoldó felmosószer 1000ml","1","8",895,null,null,null,0]
["CC Commerce bőrbarát folyékony szappan 1 lit (shea vaj)","8","8",390,null,null,null,0]
["CC Dodacid fertőtlenítő szanitertisztító (citromsavas) 10 liter","1","1",6170,null,null,null,0]
["CC Dodacid fertőtlenítő szanitertisztító (citromsavas) 750 ml","8","8",799,null,null,null,0]
["CC Geoxid alumíniumbarát hideg zsíroldó 5L","8","1",3790,null,null,null,0]
["CC Geoxid alumíniumbarát hideg zsíroldó 750 ml szórófejes","8","8",859,null,null,null,0]
["CC Graffiti Oldószeres firkaeltávolító 750ml szórófejes","1","8",1720,null,null,null,0]
["CC HYPO 10X koncentrátum, fertőtlenítőszer 5 liter","8","1",2540,null,null,null,0]
["CC Kim fertőtlenítő kétfázisú mosogatószer 1000ml","1","8",965,null,null,null,0]
["CC Kim fertőtlenítő kétfázisú mosogatószerr 5 liter","1","1",4530,null,null,null,0]
["CC Kliniko-Sept fertőtlenítő kéztisztító szappan 1000ml","8","8",1170,null,null,null,0]
["CC Kliniko-Sept fertőtlenítő kéztisztító szappan 5 liter","1","1",5430,null,null,null,0]
["CC Kliniko-Speed 5L fertőtlenítő tisztítószer","1","1",2460,null,null,null,0]
["CC Kliniko-Speed 750ml fertőtlenítő tisztítószer, szórófejes","10","8",595,null,null,null,0]
["CC Maximum fertőtlenítő gépi mosogatószer 5L","10","1",5560,null,null,null,0]
["CC Regeneráló sótabletta (Aquatab)  25 kg","12","1",4740,null,null,null,0]
["CC Trimum gépi öblítőszer, foszfátmentes 5 liter","12","1",5990,null,null,null,0]
["CC Ultramatic gépi padlótisztító 10 lit","12","1",6080,null,null,null,0]
["CC Vexagél erős vízkőoldó gél 1 liter","8","8",885,null,null,null,0]
["CC Vexal erőteljes vízkőoldó 1 liter","16","8",858,null,null,null,0]
["Celin vízkô-és rozsdaoldó 3in1 500ml","16","10",279,null,null,null,0]
["Celin vízkőoldó  háztartási gépekhez 1 liter, citromsavas","15","10",375,null,null,null,0]
["Cérnakesztyü","6","12",149,null,null,null,0]
["Chirton bútorápoló aer. méhviasszal 300ml","12","12",425,null,null,null,0]
["CIF folyékony súroló  720 gr (500ml)","2","8",495,null,null,null,0]
["CIF folyékony súroló 360 gr (250ml)","2","16",295,null,null,null,0]
["CIF mosogató citrom 500ml ","6","16",375,null,null,null,0]
["Cif Prof.  ablak- és felület tisztítószer 750 ml szórófejes","2","6",675,null,null,null,0]
["CIF prof.  extra strong  mosogató 5lit","2","2",2790,null,null,null,0]
["Cif prof. 2 in1  fertőtlenítő tisztítószer, 2 fázisú mosogató  5L","6","2",3590,null,null,null,0]
["Cif prof. 2 in1  konyhai fertőtlenítő tisztítószer, zsíroldó hatással 750ml, szórófejes","6","6",650,null,null,null,0]
["Cif Prof. Általános higiénikus törlőkendő 100 db","12","4",995,null,null,null,0]
["Cif Prof. APC  általános felülettisztítószer citrom illattal 5 l","2","2",2440,null,null,null,0]
["Cif Prof. Erőteljes tisztító- és zsíroldószer 5 liter","6","2",3360,null,null,null,0]
["Cif Prof. Erőteljes tisztító- és zsíroldószer 750ml, szórófejes","2","6",695,null,null,null,0]
["Cif Prof. Furniture Polish bútortisztítószer 750 ml, szórófejes","2","6",1425,null,null,null,0]
["Cif Prof. Oxy-Gel Ocean általános felülettisztító 5 l","6","2",3190,null,null,null,0]
["Cif Prof. Washroom 2 in 1 szaniter tisztítószer 750 ml, szórófejes","12","6",785,null,null,null,0]
["Cif Prof. Washroom 2 in 1 szaniter tisztítószer, vízkőoldó  5 lit","6","2",2990,null,null,null,0]
["Cif Prof. Window & Multi ablak- és felület tisztítószer 5 liter","10","2",2452,null,null,null,{"$f":"SUM(D139*F139)+(D139*C139*G139)","v":0}]
["CIF Prof.folyékony  súroló   2 liter","10","6",1750,null,null,null,0]
["Cif sütő-és grilltisztító 750 ml Oven & Grill Cleaner, szórófejes","15","6",995,null,null,null,0]
["Cillit  vízkő-és rozsdaoldó 450ml+300ml","12","12",679,null,null,null,0]
["Cillit BANG kosz és vízkő elleni spray, 750ml (nsárga)","12","12",795,null,null,null,0]
["Cirokseprü nagy, 5 varrásos","8","10",950,null,null,null,0]
["CLIN  ablaktisztító szórófejes 500ml","4","10",395,null,null,null,0]
["Clin ablaktisztító 4,5 liter","12","4",1590,null,null,null,0]
["CLIN ablaktisztító utántöltő  750 ml","12","15",426,null,null,null,0]
["Cobra mászórovar irtó spay 400 ml","12","12",545,null,null,null,0]
["Cobra repülő rovar irtó aer 400 ml","1","12",475,null,null,null,0]
["Coccolino öblítő  koncentrátum 925 ml","10","8",549,null,null,null,0]
["Coccolino prof. öblítő  koncentrátum 5 liter","10","2",2890,null,null,null,0]
["DALMA aktív foly  univerzális mosógél 3 l","1","4",990,null,null,null,0]
["DALMA Antibakteriális fertőtlenítő Gél 750ml","12","12",275,null,null,null,0]
["DALMA Brill mosogatószer 500ml","1","16",179,null,null,null,0]
["DALMA bútorápoló 250 ml","12","12",235,null,null,null,0]
["DALMA folyékony súroló 600gr","10","12",235,null,null,null,0]
["DALMA folyékony szappan pumpás 500 ml","12","10",229,null,null,null,0]
["DALMA Mild antibakt. foly. szappan pumpás 500ml","6","10",310,null,null,null,0]
["DALMA mild antibakteriális foly. szappan 5 liter","12","1",1640,null,null,null,0]
["DALMA mosogatószer  kézkímélő 1 liter","4","12",249,null,null,null,0]
["DALMA padlófelmosó 1 liter","24","10",259,null,null,null,0]
["Dalma softener textilöblítő konc.(4X) 1 liter","10","12",239,null,null,null,0]
["Dalma Star universális BioActive  mosópor 3 kg","10","6",895,null,null,null,0]
["DALMA Súrol-6 súrolópor 500gr","8","12",220,null,null,null,0]
["DELLO Folyékony szappan  1lit","12","8",259,null,null,null,0]
["Delta Ipari kéztörlő tekercses 14cm átm.2r. fehér 100% cell. 51 m (12tek/krt)","20","1",3850,null,null,null,0]
["Delta Ipari kéztörlő tekercses 19cm átm.2r. fehér 100% cell. 100 m (6tek/krt)","12","1",3400,null,null,null,0]
["Delta Ipari kéztörlő tekercses 26cm átm.2r. fehér 100% cell. 160 m (2tek/krt)",null,"1",2690,null,null,null,0]
["-delta Toalett papír 19 cm átm. 1 rét. fehér, mintás 120 m (12tk/karton) ","20","1",2590,null,null,null,0]
["Delta Toalett papír 19 cm átm. 2 rét. fehér 100% cellulóz 120 m (12tk/karton) ","12","1",3400,null,null,null,0]
["Delta Toalett papír 23 cm átm. 2 rét. fehér 100% cellulóz 175 m (6 tek/karton) ","1","1",2590,null,null,null,0]
["Delta Toalett papír 26 cm átm. 2 rét. fehér 100% cellulóz 210 m (6 tek/karton) ","6","1",3390,null,null,null,0]
["Dino gyermek fogkrém zselés 50 ml","1","12",169,null,null,null,0]
["Domestos 750 ml fertőtlenítő tisztítószer","24","20",385,null,null,null,0]
["DOMESTOS ált. tisztítószer 1 liter","24","12",549,null,null,null,0]
["Domestos attax öntapadós WC ill. csík 3 db","12","20",319,null,null,null,0]
["DOMESTOS fehérítő 750ml","12","20",440,null,null,null,0]
["Domestos fertőtlenítő spray 750ml","1","12",795,null,null,null,0]
["DOMESTOS fresh 5 literes","10","1",2450,null,null,null,0]
["DOMESTOS higiénikus kendô 60db-os ","100","6",779,null,null,null,0]
["Domestos Piszoárillatosító tabletta 150 db 3 kg-os","14","1",9490,null,null,null,0]
["DOMESTOS WC illatosító rúd  kosaras 3in1","10","24",289,null,null,null,0]
["DOMESTOS WC illatosító rúd utánt. 3in1","1","24",199,null,null,null,0]
["Domestos WC tisztító gél  700 ml","12","12",449,null,null,null,0]
["DOMESTOS ZERO wc tiszt.+vízkőoldó 750ml","4","12",456,null,null,null,0]
["DOSIA mosópor ultra kompakt 9kg  (128 mosás)","12","1",3190,null,null,null,0]
["DOSIA mosópor ultra kompakt 9kg COLOR (128 mosás) ","4","1",3190,null,null,null,0]
["Eldobható gumikesztyü 100db-os (Latex,púderes, fehér)  S,M,L,XL","10","10",1450,null,null,null,0]
["Eldobható gumikesztyü Sensi 100db-os (nitryl, púdermentes, kék) S,M,L,XL","10","10",1590,null,null,null,0]
["Eldobható kesztyü fólia,  polietilén 100db-os","100","100",200,null,null,null,0]
["Éttermi szalvéta 600 lapos 1 rétegű fehér (17*17 cm)","5","32",340,null,null,null,0]
["EXTRA müanyag partvis nyéllel (Giulia)","24","10",445,null,null,null,0]
["Fa menetes utcaserprő erős szállal (40cm)","12","1",799,null,null,null,0]
["Felmosó súrolókefe fej  műanyag","12","10",340,null,null,null,0]
["Felmosó súrolókefe króm nyéllel","5","10",535,null,null,null,0]
["Felmosóruha extra viszkóz sárga 60*80cm","12","100",375,null,null,null,0]
["Felmosóruha pamut, varrott","15","100",135,null,null,null,0]
["Fénymásoló papir Royal White A/4 80gr 500 lap","12","5",1095,null,null,null,0]
["Finish All in One Max mosogató tabletta 76 db-os","12","5",3190,null,null,null,0]
["Finish mosogatógép llatositó 30 gr, akasztós ","12","20",895,null,null,null,0]
["Finish mosogatógép tiszttító 250ml","12","12",865,null,null,null,0]
["Finish mosogatógépi öblitô 385 ml","60","12",849,null,null,null,0]
["Finish regeneráló só 1,5kg, mosogató gépbe","4","12",539,null,null,null,{"$f":"SUM(D203*F203)+(D203*C203*G203)","v":0}]
["Floraszept folyékony 1liter","50","15",420,null,null,null,0]
["FLORASZEPT folyékony 5 literes","10","1",2390,null,null,null,0]
["Floraszept fürdőszobai tisztító 750 ml szfejes","50","12",660,null,null,null,0]
["Floraszept konyhai zsíroldó 750 ml szfejes","12","12",660,null,null,null,0]
["Fogkefe  gyerek ","100","12",67,null,null,null,0]
["Fogkefe Complex felnőtt medium","18","12",95,null,null,null,0]
["FOLPACK 300 méter (30cm széles) ","8","8",1370,null,null,null,0]
["FOLPACK frissentartó fólia 30 m","20","25",155,null,null,null,0]
["Glanc ecetes tisztítószer 1lit","14","10",375,null,null,null,0]
["Gumikesztyü háztartási S,M,L,XL méret","12","10",149,null,null,null,0]
["Gumikesztyü pamutbélelt Comfort S,M,L,XL","12","10",217,null,null,null,0]
["Gyufa 10db-os","1","100",85,null,null,null,0]
["Harmasan Classic WC papír 10 tek 2 rét, fehér 200 lap!","1","8",575,null,null,null,0]
["Harmony GASZTRO fehér szalvéta 2 rétegű, 33*33 cm 250 lap/csg  ","10","8",960,null,null,null,0]
["Harmony kéztörlöpapír  2 tek. (2X50 lap) fehér 2 rét","1","24",179,null,null,null,0]
["Hideg zsiroldó Well Done 1 l utántöltő","1","14",820,null,null,null,0]
["Hideg zsíroldó Well Done 750 ml pumpás","40","15",790,null,null,null,0]
["Hintőpor 100 gr","1","12",235,null,null,null,0]
["Hippo Szelektív hulladékgyüjtő, billenő tetővel 70 lit (39*48*70cm) kék,sárga,zöld","1","1",5960,null,null,null,0]
["Hippo szelektív hulladékgyüjtőhöz kerék- 4 db","1","1",1470,null,null,null,0]
["HPZ hajtogatptt  kéztörlô zöld 250 lap (20db-os karton ár)","1","1",3950,null,null,null,0]
["HPZ Z hajtású világos 1 rét. 250 lapos kéztörlő 23*23  (20db-os karton ár)","1","1",3860,null,null,null,0]
["HYPO 1 literes fóliás","1","10",79,null,null,null,0]
["HYPO granulátum  4 kg vödrös (330 liter hypo előállításához)","10","1",5690,null,null,null,0]
["HYPO ipari koncentrátum 5lit (90gr/lit)","12","1",995,null,null,null,0]
["HYPO-POR 60 gr (10 liter Hypo   előállításához !)","1","40",189,null,null,null,0]
["Ideal kerekes takarítókocsi 2*25 liter króm vázzal +prés+tólókar+eszköztartó","1","1",22900,null,null,null,0]
["Ideal mop huzat mikroszálas zsebes, füles 40cm","1","1",1360,null,null,null,0]
["Ideal Mophuzat talphoz, zsebes és füles, pamut 40cm","1","1",1290,null,null,null,0]
["Ideal Mophuzat talphoz, zsebes és füles, pamut 50cm ","1","1",1390,null,null,null,0]
["Ideal Moptartó talp zsebes és füles mophoz, műanyag 40*11 cm","1","1",2450,null,null,null,0]
["Ideal Moptartó talp, zsebes vagy füles mophozműanyag 50*13 cm ","10","1",2190,null,null,null,0]
["Inno Chlor DW 5l fertőtlenítő gépi mosogatószer konc. (TF Klor MG)","1","1",7140,null,null,null,0]
["Inno Chlor T  fertőtlenítő takarítószer 5 liter","10","1",2530,null,null,null,0]
["Inno dish 2 fázisú fertőtlenítő mosogató (foszfátmentes) 1 liter","1","10",1067,null,null,null,0]
["Inno MF M (baktericid,fungicid) kézi mosogató konc.  5 l","12","1",8390,null,null,null,0]
["Inno MF M fertőtlenítő kézi mosogató 1 liter","1","10",1850,null,null,null,0]
["Inno-Brite 5l gépi öblítőszer","1","1",5950,null,null,null,0]
["INNOCID 3%  felüéet- és eszközfertőtlenítő oldat 5lit","1","1",4735,null,null,null,0]
["Innocid 3% fertőtlenítő oldat szórófejes 1 l ","10","10",1100,null,null,null,0]
["Innofluid-Acid-SX   vízkő-rozsdaoldó konc. 1 lit","1","10",760,null,null,null,0]
["Innofluid-Acid-SX  vízkő-rozsdaoldó konc. 5 l","1","1",3490,null,null,null,0]
["Innofluid-Acid-SX  vízkő-rozsdaoldó konc. csőrös 750ml","1","12",760,null,null,null,0]
["Innofluid-TF-Klór M 5 lit fert.mosogatószer konc.emelt zsíroldó (Chlor M)","10","1",6100,null,null,null,0]
["Innofluid-TF-Klór-M 1 literes fertőtlenítő mosogatószer koncentrátum (Chlor M)","1","10",1350,null,null,null,0]
["Innopon-Text-Főmosó-CL 20 kg, fehérítő, fertőtlenítő mosópor","1","1",17180,null,null,null,0]
["INNO-SEPT  foly. szappan (baktericid,fungicid,virucid) 1 lit","1","10",1380,null,null,null,0]
["INNO-SEPT  foly. szappan (baktericid,fungicid,virucid) 500ml szórófejes","10","12",1065,null,null,null,0]
["INNO-SEPT foly. szappan (baktericid,fungicid,virucid) 5 liter","12","1",6490,null,null,null,0]
["INNO-SEPT Fresh fertőtlenítő törlőkendő 50 db(adagolós dobozban)","1","30",1065,null,null,null,0]
["Inno-Sept-Gél-Extra 100ml alkoholos  kézfertőtlenítő (víz nélkül)","18","20",740,null,null,null,0]
["Inno-Sept-Gél-Extra 500ml pumpás alkoholos  kézfertőtlenítő (víz nélkül)","1","12",1150,null,null,null,0]
["Jar mosogató 450 ml","1","21",299,null,null,null,0]
["JAR mosogató 900 ml","1","12",549,null,null,null,0]
["Jar mosogató Lemon 5 liter","10","3",2490,null,null,null,0]
["Kertiseprü GARDEN  (műanyag szálakkal) ,króm nyéllel","20","10",775,null,null,null,{"$f":"SUM(D259*F259)+(D259*C259*G259)","v":0}]
["Kéziseprü, cirok","8","25",590,null,null,null,0]
["Kiehl AciDés folyékony savas fertőtlenítő-tisztítószer, szaniter (VAH-lista)","3","6",1250,null,null,null,0]
["Kiehl Aktiv duft parfüm konc. illóolaj szaniter helységekbe 1 liter","6","6",1780,null,null,null,0]
["Kiehl Dopomat Forte lúgos ipari tisztítószer gépi 10 liter","4","1",9100,null,null,null,0]
["Kiehl duocit-eco öko szanitertisztító (narancs ill.) 1 lit","1","6",885,null,null,null,0]
["Kiehl duocit-eco öko szanitertisztító (narancs ill.) 10 liter","1","1",6380,null,null,null,0]
["Kiehl eloxa prima fémtisztító 750ml pumpás",null,"6",3415,null,null,null,0]
["KIEHL Grassaet  konyhai zsíroldószer 1 L",null,"6",1377,null,null,null,{"$f":"SUM(D267*F267)+(D267*C267*G267)","v":0}]
["Kiehl Optima öko felület - és üvegtisztító 10 liter Ecolabel",null,"1",5330,null,null,null,0]
["Kiehl Optima öko felület -és üvegtisztító 1 liter",null,"6",720,null,null,null,0]
["Kiehl Parketto-care fából készült padló ápolószer (DIN 18032)  5 lit",null,"1",9350,null,null,null,0]
["Kiehl Parketto-clean-Konzentrat fából készült- és laminált padló tisztítószer 1 lit","1","6",1575,null,null,null,0]
["Kiehl Patronal Eco szaniter tisztító és védő 10 liter","1","1",8815,null,null,null,0]
["Kiehl Patronal-Classic szaniter tisztítószer védő formulával 1 lit","1","6",1130,null,null,null,0]
["Kiehl Sanpurid citrus illatú szaniter tisztító 1 liter","1","6",895,null,null,null,0]
["Kiehl Sanpurid-Citro szaniter tisztító frissítő citrus illattal 10 liter",null,"1",6930,null,null,null,0]
["Kiehl Tablefit műanyag és íróasztal tisztító 750 ml","1","6",1885,null,null,null,0]
["Kiehl Tornado erőteljes tisztító 1 liter","01087","6",859,null,null,null,0]
["Kiehl Tornado erőteljes tisztító 10  liter","1","1",6130,null,null,null,0]
["Kiehl Torvan-Konzentrat aktív tisztító 1 lit","1","6",1769,null,null,null,0]
["Kiehl Torvan-Konzentrat aktív tisztító 10 lit","1","1",15900,null,null,null,0]
["Konyharuha kockás 50*70cm","1","12",175,null,null,null,0]
["Kőlehúzó, vízletoló  55cm széles, króm  nyéllel","1","1",980,null,null,null,0]
["Körömkefe MOSON, nagy, fogantyús","6","35",179,null,null,null,0]
["Körömkefe müanyag, Óvár","1","12",99,null,null,null,0]
["Kötény polietilén fólia 100 db/cs 80*125 cm, fehér","8","1",2575,null,null,null,0]
["Lábtörlô kókusz 35*60cm","1","10",795,null,null,null,0]
["Lenor öblítő koncentrátum 5 liter","8","3",2088,null,null,null,0]
["Lynn alkoholos  ablaktiszt. szórófejes 750 ml","1","10",319,null,null,null,0]
["M. Evőkanál műanyag eldobható (100db) fehér","1","1",395,null,null,null,0]
["M. Gulyástál 0,5 liter műanyag eldobható (100 db)","1","1",1530,null,null,null,0]
["M. Kávéskanál (kiskanál) müa eldobható (100 db)","1","1",290,null,null,null,0]
["M. Kés műanyag eldobható (100db)","1","1",349,null,null,null,0]
["M. Keverőlapka   müa    (1000db)","1","1",990,null,null,null,0]
["M. Lapostányér műanyag eldobható 21 cm (100db)","6","1",1670,null,null,null,0]
["M. Pohár müa  eldobható 2dl (100db) ","12","30",379,null,null,null,0]
["M. Pohár müa eldobható 1 dl (100db)","1","48",365,null,null,null,0]
["M. Pohár müa. eldobható 3 dl (100 db)","1","20",840,null,null,null,0]
["M. Pohár müa. eldobható 5 dl (50db)","1","10",750,null,null,null,0]
["M. Reklámszatyor 28*50cm ingvállas, csikos 100 db-os","30","5",990,null,null,null,0]
["M. Villa műanyag eldobható (100db)","30","1",390,null,null,null,0]
["MIRAX hideg zsíroldó 750  ml szórófejes","18","10",525,null,null,null,0]
["MIRAX lefolyótisztító gél 1lt","10","10",375,null,null,null,0]
["MOP felmosó készlet (vődőr,kosár,nyél)150gr-os fejjel","1","1",990,null,null,null,0]
["MOP felmosófej pamut fehér XXL 300gr","20","50",425,null,null,null,0]
["MOP kerek vödör 12 liter + csavaró kosár","1","1",615,null,null,null,0]
["MOP nyél fém, müa.borítással 120 cm","1","25",139,null,null,null,0]
["Mosogatókefe műanyag, nyeles, Stilo","1","24",149,null,null,null,0]
["Mosószóda (csodaszóda) 500gr","10","30",195,null,null,null,0]
["Mr Muscle lefolyótisztító 1000ml","12","12",730,null,null,null,0]
["Munkavédelmi kesztyü bőr-textil","12","1",380,null,null,null,0]
["NIVEA krém 75ml","1","5",445,null,null,null,0]
["OMO Prof. folyékony mosószer Horeca 67 mosás (5 liter)","1","2",3900,null,null,null,0]
["OMO professional  mosópor  7 kg  (84 mosásra)","32","1",4350,null,null,null,0]
["OMO professional  mosópor COLOR 7 kg  (84 mosásra) ","12","1",3650,null,null,null,0]
["Palackmosó kefe csavart fém nyéllel","12","25",279,null,null,null,0]
["Palmolive folyékony szappan 250 ml pumpás","1","12",525,null,null,null,0]
["Palmolive pipereszappan 90 gr","12","72",119,null,null,null,0]
["Palmolive tusfürdő 250 ml","5","12",329,null,null,null,0]
["Papírzsebkendő 100 db-os 3 rétegű Aloe Verás","12","50",139,null,null,null,0]
["Papírzsebkendö 100db-os 3 rétegű","3","50",129,null,null,null,0]
["Partvis fej GAMMA, sűrü, fekete-fehér, műanyag test","20","10",540,null,null,null,0]
["Partvis lószőrös,  fa nyéllel , Classic","24","10",1190,null,null,null,0]
["Partvisfej lószőrös , Classic","20","10",875,null,null,null,0]
["Partvisfej műanyag Giulia","1","10",290,null,null,null,0]
["Partvisnyél fa,menetes, lakkozott 120 cm","1","25",349,null,null,null,0]
["Pedálos szemetes, 22 liter, kivehető betéttel 350*330*406 mm","1","4",2760,null,null,null,0]
["Pedálos szemetes, 50 liter, kivehető betéttel 430*420*560 mm ","20","2",4990,null,null,null,0]
["Pedálos szemetesvödör 6 l-es, 24x19,5x28cm ","20","12",1290,null,null,null,0]
["Pedálos szemetesvödör, 12 l, kivehető betéttel 29x24x33cm","1","8",1675,null,null,null,0]
["PERFEX Jumbo Deluxe XXL törlőpapír 2x200lap ","1","10",895,null,null,null,0]
["PERFEX szalvéta 33*33cm fehér, 1 rétegű 100 db-os","1","40",228,null,null,null,{"$f":"SUM(D331*F331)+(D331*C331*G331)","v":0}]
["PERFEX WC papír 2 rét. hófehér 100% cell. 24tek","1","6",925,null,null,null,0]
["PERFEX WC papír 3 rét. hófehér 100% cell. 24tek","18","6",895,null,null,null,0]
["PERFEX WC papír 8+2 tek. 2 rétegű hófehér","12","12",429,null,null,null,0]
["PERFEX WC papír 8+2tek. 3 rétegű 120 lap, illatosított","24","8",579,null,null,null,0]
["PERSIL 1,46 literl gél   mosószer (20 mosás)","1","8",1190,null,null,null,0]
["PERSIL 40 mosásos gél  mosószer (2 liter)","12","4",1840,null,null,null,0]
["PERSIL Duo mosókapszula expert 28 db","1","5",1840,null,null,null,0]
["PERSIL expert 2,8  kg mosópor 40 mosás","1","4",1840,null,null,null,0]
["Piszoár illatosító tabletta  400 gr tégelyes","1","12",599,null,null,null,0]
["Piszoár rács,  illatosított (1 hónapig illatosít)  ","10","10",690,null,null,null,0]
["Piszoár rács, tabletta tartóval, műanyag","10","100",380,null,null,null,0]
["Portörlőruha 50X40cm pamut","1","50",139,null,null,null,0]
["PRONTO aer. bútorápoló 5in1 250 ml","24","12",759,null,null,null,0]
["Pronto por-stop általános felülettisztító 250 ml","1","12",759,null,null,null,0]
["PUR  mosogató extra 900ml","10","12",399,null,null,null,0]
["Pur mosogató 4,5 liter power gel","1","4",1995,null,null,null,0]
["PUR mosogató 450ml ","1","20",259,null,null,null,0]
["RAID Max  csótány-hangyairtó aer. 400ml","1","1",745,null,null,null,{"$f":"SUM(D349*F349)+(D349*C349*G349)","v":0}]
["Rovatoxx rovarirtó por 100 gr",null,"15",379,null,null,null,{"$f":"SUM(D350*F350)+(D350*C350*G350)","v":0}]
["Rubis pipereszappan 125 gr","50","72",109,null,null,null,0]
["Rubis szappan 100 gr-os ","10","96",85,null,null,null,0]
["Sandel kézbalzsam 100 ml tubusos","10","30",175,null,null,null,0]
["Sandel kézbalzsam 250 ml , pumpás",null,"12",299,null,null,null,0]
["SANTaL általános tisztítószer 5liter gyögyvirág ill.",null,"1",1595,null,null,null,0]
["SANTAL folyékony szappan 5lit ",null,"1",1095,null,null,null,0]
["SANTAL mosogató  5 liter",null,"1",1075,null,null,null,0]
["SANTAL savas saniter tiszt.és vízkőoldó 5lit",null,"1",2150,null,null,null,0]
["SIGNAL fogkrém Family 75ml",null,"12",249,null,null,null,0]
["Silan öblítő 1,85 liter",null,"8",993,null,null,null,0]
["SILAN öblítö koncentrátum 925 ml",null,"12",495,null,null,null,0]
["Sofix laminált-parketta, köre, linóleumra  1 lit",null,"12",765,null,null,null,0]
["Somat 8 action  mosogatógép tabletta 84 db-os",null,"5",2800,null,null,null,0]
["Sósav háztartási 1 liter 20%-os",null,"10",220,null,null,null,0]
["SUMA D1 plus  kézi mosogató szuperkonc. 1.5l adagolóba",null,"4",6200,null,null,null,0]
["SUMA D4 klórtabletta 300 db-os",null,"4",3900,null,null,null,0]
["SUN Professional mosogatógép tabletta 188 db-os",null,"4",4990,null,null,null,0]
["Súrolókefe fa, piskóta alakú",null,"1",179,null,null,null,0]
["Szavo penész elleni spray 500 ml ",null,"12",1140,null,null,null,0]
["Szemeteslapát gumi éllel, nyélre pattintható , Clip",null,"24",189,null,null,null,0]
["Szemeteslapát hosszú nyéllel + seprű,  készlet (110cm)",null,"12",1650,null,null,null,0]
["Szemeteslapát+kézi kefe készlet",null,"24",385,null,null,null,0]
["Szemeteszsák 10 literes (45*50cm) 20db/tek",null,"50",88,null,null,null,0]
["Szemeteszsák 110 lit-es  60*100 cm kukazsák   (10db)",null,"50",165,null,null,null,0]
["Szemeteszsák 135 lit  70x110 cm extra erős (10db)",null,"25",255,null,null,null,0]
["Szemeteszsák 160 lit-es  80*120cm kukazsák  (10db)",null,"25",359,null,null,null,0]
["Szemeteszsák 200 literes 95*120cm 30 mikron (10db/tek)",null,"25",430,null,null,null,0]
["Szemeteszsák 25 lit prémium  50*50 cm (20db)",null,"50",99,null,null,null,0]
["Szemeteszsák 30 lit 50*60cm extra erős (20db)",null,"50",139,null,null,null,0]
["Szemeteszsák 40 lit. 55*62 cm extra erős (20db)",null,"50",159,null,null,null,0]
["Szemeteszsák 60 l-es  60x70cm extra erős (20 db)",null,"50",179,null,null,null,0]
["Szemeteszsák 80 literes 70*80cm 17 mikron (20db)",null,"50",229,null,null,null,0]
["Szóróflakon 1 l szórófejjel",null,"100",220,null,null,null,0]
["Teleszkópos nyél fém 3 méteres",null,"10",960,null,null,null,0]
["Terempartvis fa  80cm széles ,fa  nyéllel",null,"5",2350,null,null,null,0]
["TIP kombi 2 fázisú fertőtlenítő mosogató por 4kg utántöltő",null,"4",4450,null,null,null,0]
["TIP kombi mosogató por 4 kg vödrös",null,"1",6349,null,null,null,0]
["TIRET lefolyótisztító 1liter",null,"12",730,null,null,null,0]
["Toalett kacsa DUCK WC tisztító 750ml",null,"12",385,null,null,null,0]
["TOMI  mosópor EU Compact 1,4 kg (20 mosás)",null,"8",990,null,null,null,0]
["Tomi kristály  gél 20 mosásos (1 liter)",null,"8",990,null,null,null,0]
["TOMI kristály EU compact 3,51 kg (54 mosás)",null,"3",2195,null,null,null,0]
["TOMI kristály gél 60 mosás (3 liter)",null,"4",2290,null,null,null,0]
["TORK folyékony szappan adagoló 1 literes S1",null,"12",5590,null,null,null,0]
["TORK folyékony szappan adagoló mini 450 ml-hez S2",null,"12",4890,null,null,null,0]
["TORK folyékony szappan baktericid (MRSA), fungicid, virucid, tuberkolocid1 lit S1",null,"6",1640,null,null,null,0]
["TORK folyékony szappan glicerinnel, fehér 5 lit Yes adagolóba",null,"1",1399,null,null,null,0]
["TORK folyékony szappan mini, pipere  0,475ml S2 (421602)",null,"8",649,null,null,null,0]
["TORK folyékony szappan Premium 1 l S1 (421601)",null,"6",795,null,null,null,0]
["TORK folyékony szappan Premium kézkímélő, gyöngyházfényű   475ml  S2",null,"8",695,null,null,null,0]
["TORK hajtogatott kéztörlő 200lap zöld (290135) (20db-os karton ár) H3",null,"1",7450,null,null,null,0]
["TORK hajtogatott kéztörlő adagoló  (400 lapos)  H3",null,"1",5475,null,null,null,0]
["TORK hajtogatott kéztörlő fehér, 2 rétegű,  (20*200 lap kartonos ár) H3 290184",null,"1",8340,null,null,null,0]
["TORK hajtogatott kéztörlő prémium Lintex  2 rét. fehér, 15*250  lap(karton) H3",null,"1",10390,null,null,null,0]
["TORK hajtogatott kéztörlő Soft hajt. 1rtg, fehér 15x300 lap (290158) H3",null,"1",10290,null,null,null,0]
["TORK kéztörlő adagoló, belsőmag  mini M1",null,"1",6160,null,null,null,0]
["TORK kéztörlő belsőmagos tekercses törlő, mini (11db-os karton ár) M1",null,"1",9390,null,null,null,0]
["TORK kistekercses Prémium Toalettpapír 3 rétegű, hófehér T4 (6*10tek)",null,"1",5690,null,null,null,0]
["TORK kistekercses toalettpapír adagoló  (2 tek fér bele)",null,"1",6390,null,null,null,0]
["TORK kistekercses toalettpapír extra soft 4 réteg (42 tek. karton ár) T4",null,"1",7490,null,null,null,0]
["TORK kistekercses WC papír 10 tekercses (2 rétegű) 250lap (6*10 tekercses karton ár)",null,"1",5490,null,null,null,0]
["TORK wc papír 19cm/2 rtg mintás  hófehér . Mini Jumbo 170 méter (12 tekercs)",null,"1",7150,null,null,null,0]
["TORK wc papir 26 cm 2 rét. fehér  1120 lapos   (6db-os karton ár) T1",null,"1",5990,null,null,null,0]
["TORK WC papír adagoló Jumbo  nagy 32 cm T1 fehér",null,"1",7680,null,null,null,{"$f":"SUM(D414*F414)+(D414*C414*G414)","v":0}]
["TORK WC papír adagoló Jumbo mini  19 cm  T2",null,"1",5970,null,null,null,0]
["TORK WC papír premium 19 cm 2 rétegű mintás 12*170 méter(karton) T2",null,"1",8530,null,null,null,{"$f":"SUM(D416*F416)+(D416*C416*G416)","v":0}]
["TORK WC papír Premium Jumbo 26 cm átm-2 réteg , 360 méter (6tek. karton ár) T1","12","1",7930,null,null,null,{"$f":"SUM(D417*F417)+(D417*C417*G417)","v":0}]
["TRISÓ  500gr","21","30",285,null,null,null,{"$f":"SUM(D418*F418)+(D418*C418*G418)","v":0}]
["Ultra derm kéztisztító 400 gr","50","30",358,null,null,null,{"$f":"SUM(D419*F419)+(D419*C419*G419)","v":0}]
["Ultra fehérítő 1 liter","50","12",336,null,null,null,{"$f":"SUM(D420*F420)+(D420*C420*G420)","v":0}]
["Ultra mosógatópor zacskós 500 gr","6","10",440,null,null,null,{"$f":"SUM(D421*F421)+(D421*C421*G421)","v":0}]
["Ultra mosogatópor zsákos 20kg","6","1",14800,null,null,null,0]
["Ultra Sol fertőtlenítő kézmosó  500ml","1","20",375,null,null,null,0]
["Uzsonnás és hűtőtasak 20*30cm 2 literes (100db)","12","75",159,null,null,null,0]
["Uzsonnás és hűtőtasak 25*35cm 3 literes (100db)","6","60",219,null,null,null,0]
["Vally szônyegtisztító  gépi-kézi 500 ml","1","10",299,null,null,null,0]
["VANISH mosószer adalék Intellig. 1liter","6","12",785,null,null,null,0]
["VANISH szönyegtisztító folyadék ¤gépi vagy ¤ kézi","1","12",940,null,null,null,0]
["Vileda Ablaktisztító 2in1 szett, teleszkópos nyéllel","40","1",5950,null,null,null,0]
["VILEDA edénytisztító szivacs formált (Glitzi) 2db","12","32",299,null,null,null,0]
["VILEDA felmosóhoz nyél (pattintós)","1","12",695,null,null,null,0]
["Vileda fürdőszoba tisztító szett, teleszkópos nyéllel","12","1",3155,null,null,null,0]
["VILEDA gyorsfelmosó  készlet (vödör+kosár+nyél+fej)","12","1",4080,null,null,null,0]
["VILEDA gyorsfelmosó fej 3D  flexel/kék (pattintós)","6","12",1190,null,null,null,0]
["VILEDA gyorsfelmosó vödör + csavaró kosár (supermop)","6","5",2635,null,null,null,0]
["VILEDA gyorsfelmosóhoz  fej SÁRGA/soft (pattintós)","1","12",817,null,null,null,0]
["VILEDA háztartási törlôkendô Universal (fehér, kockás)","1","3",155,null,null,null,0]
["VILEDA Inox Fémsúroló 2 db","12","20",309,null,null,null,0]
["VILEDA mosogatókendö 1db","10","24",289,null,null,null,0]
["Vileda Multi Quattro 3+1 db törlőkendő","10","20",595,null,null,null,0]
["VILEDA Prof. Breazy mikroszálas törlőkendő 35*35 (4 színben)","1","25",149,null,null,null,0]
["VILEDA Prof. CombiSpeed  zsebes  moptartó (talp) 50cm","1","10",6590,null,null,null,0]
["VILEDA Prof. CombiSpeed zsebes  moptartó (talp) 40cm","1","10",5650,null,null,null,0]
["VILEDA Prof. Contact aluminium nyél 145cm","1","12",1879,null,null,null,0]
["VILEDA Prof. Contract  mophuzat zsebes+füles  50*14","1","20",1950,null,null,null,0]
["VILEDA Prof. Contract  mophuzat zsebes+füles 40*14","1","20",1650,null,null,null,0]
["VILEDA Prof. törlő- lemosókendő all-purpose 40*38","30","10",125,null,null,null,0]
["Vileda Pur Active mosogatószivacs (teflonra) 2db-os","48","28",403.2,null,null,null,0]
["Vileda Style általános háztartási törlőkendő 3 db-os","20","20",378,null,null,null,0]
["Vileda Style gyorsfelmosó pamut fej","10","45",474,null,null,null,0]
["Vileda Style gyorsfelmosó viszkóz fej",null,"40",554,null,null,null,0]
["Vileda Style hosszúnyelű szemeteslapát (kényelem)",null,"18",1380,null,null,null,0]
["VILEDA STYLE mikroszálas törlőkendő  4db (4 szín)",null,"18",1545,null,null,null,0]
["Vileda Style mosogatószivacs 9db-os",null,"40",259,null,null,null,0]
["Vileda Style partvis nyéllel, gumiperemmel",null,"6",1445,null,null,null,0]
["Vileda szivacskendő 3 db-os",null,"24",490,null,null,null,0]
["VILEDA ultramax lapos felmosó huzat",null,"8",2190,null,null,null,0]
["VILEDA ultramax lapos felmosó készlet (vődőr+csavaró+nyél+talp)",null,"1",7790,null,null,null,0]
["VILEDA ultramax nyél+talp+huzat",null,"8",5150,null,null,null,0]
["Vízkőoldó háztartási 1 liter  ",null,"10",225,null,null,null,0]
["Vízköoldó sósavmentes 1l Celin",null,"10",269,null,null,null,0]
["Vödör müanyag ,erős fém füllel 12l iteres",null,"1",295,null,null,null,0]
["WC kefe müanyag tartóval",null,"24",375,null,null,null,0]
["WC pumpa (dugulási pumpa),műanyag nyéllel",null,"24",350,null,null,null,0]
["WEPA Smart hajtogatott kéztörlő 2r. fehér 24*22 cm 20*160 lap -karton Ecolabel",null,"1",5490,null,null,null,0]
["WU-2 sampon 1l",null,"10",690,null,null,null,0]
["YES Folyékony szapp. adagoló BASIC  500 ml fehér, zárható",null,"30",1250,null,null,null,0]
["YES Folyékony szappan adagoló 1 literes, fehér, zárható",null,"18",2995,null,null,null,0]
["YES Folyékony szappan adagoló 500 ml fehér, zárható",null,"24",2490,null,null,null,0]
["YES hajtogatott kéztörlő adagoló 400 lapos  (27*27*13 cm)",null,"10",3190,null,null,null,0]
["YES tekercses kéztörlő adagoló átm 19 cm,  belsőmagos",null,"6",4480,null,null,null,{"$f":"SUM(D471*F471)+(D471*C471*G471)","v":0}]
["YES Toalettpapír adagoló 19 cm átm. műanyag fehér, zárható",null,"1",3675,null,null,null,0]
["Yes Toalettpapír adagoló 28 cm, fehér műa. zárható MAXI",null,"1",4150,null,null,null,0]
["Zewa  nedves toalettpapír 42 db",null,"8",386,null,null,null,0]
["Zewa Deluxe papirzsebkendő 10*10 db",null,"24",348,null,null,null,0]
["Zewa Deluxe papírzsebkendő 90 db",null,"40",239,null,null,null,0]
["Zewa Deluxe WC papír 3 rétegű 16 tek",null,"3",1550,null,null,null,0]
["Zewa Family dobozos, adagolós  papírzsbkendő 3 rét. 90db-os",null,"18",399,null,null,null,0]
["Zewa Softis  4 rétegű dobozos papír zsebkendő design 80 db",null,"18",385,null,null,null,0]
["Zöldlomb ÖKO alkoholos üvegtisztító pumpás 500ml",null,"10",269,null,null,null,0]
["Zöldlomb ÖKO ecetes  WC tisztítószer 750ml",null,"10",339,null,null,null,0]
["Zöldlomb ÖKO mosogatószer Aloe Vera 750 ml","5","10",420,null,null,null,0]
["Zöldlomb ÖKO mosogatószer ecetes 750 ml","1","10",420,null,null,null,0]
["Zöldlomb ÖKO padlóápoló 1 liter","10","10",417,null,null,null,0]
["Zöldlomb ÖKO szanitertisztító, vízkőoldó szf. 750 ml","10","10",359,null,null,null,{"$f":"SUM(D485*F485)+(D485*C485*G485)","v":0}]
["Sávos kedvezményeink :",null,"Nettó összesen (kedvezmény nélkül):",null,null,null,null,{"$f":"+SUM(H12:H485)","v":0}]
["20.000 Ft-ot meghaladó vásárlásnál: 2%",null,"kedvezmény %-ban :",null,null,null,null,{"$f":"+VLOOKUP(Munka5!E2,Munka5!C6:E15,3,TRUE)","v":0}]
["40.000 Ft-ot meghaladó vásárlásnál: 6%",null,"kedvezmény Ft-ban :",null,null,null,null,{"$f":"SUM(H12:H485)*H487","v":0}]
["80.000 Ft-ot meghaladó vásárlásnál: 8%",null,"nettó összesen (kedvezménnyel) :",null,null,null,null,{"$f":"SUM(H486)-H488","v":0}]
["kedvezményt adunk számlájából!",null,"bruttó összesen (kedvezménnyel) :",null,null,null,null,{"$f":"SUM(H489)*1.27","v":0}]
[" 30.000 Ft meghaladó rendelés estén a szállítás díjtalan!",null,"Webáruházunk:  ",null,null,"www.tisztitoszer-depo.hu"]
[" "]
["Megjegyzések:"]

{"sheet":"Munka2","index":1,"n_rows":12,"n_cols":8,"rows_kept":12,"cut":false,"hidden":true,"merged":[]}
[]
[null,null,"Összes rendelési érték",null,{"$f":"+SUM(Árlista!H12:H353)","v":0}]
[]
[]
[null,null,"TÓL","IG","KEDVEZMÉNY",null,"INGYENES SZÁLLÍTÁS"]
[null,null,0,15000,0,null,30000,"-TÓL"]
[null,null,{"$f":"+D6+1","v":15001},30000,0.04]
[null,null,30001,50000,0.06]
[null,null,50001,10000000,0.08]
[null,null,10000001,10000000,0.08]
[null,null,10000001,10000000,0.08]
[null,null,10000001,10000000,8]

{"sheet":"Munka3","index":2,"n_rows":117,"n_cols":15,"rows_kept":117,"cut":false,"hidden":true,"merged":[[1,0,2,0]]}
["Fontos! Minden havi frissitesnel, amikor a termekek listajanak a hossza valtozik, itt be kell jegyezni az elso es az utolso termeknek a sorszamat (Row number) es Frissiteni a termeklista intervallumot."]
["Termek Lista","elso sor:",12]
[null,"utolso sor:",485]
[]
["a zold szinu cellakat a program hasznalja, ezeket az adminisztrator tetszes szerint atirhatja! "]
["A fizetesi modszerek elnevezeset es a modszerek szamat az adminisztrator tetszes szerint vatoztathatja"]
[4,"-a fizetesi modszerek szama -mindig az A7 pozicioban kell legyen (a Munka3 lapon) es ez a szam meg egyezzen a gordulomenu elemei szamaval"]
["kérem válasszon a menüből","-kezdetleges utasitas -mindig a fizetesi modszerek szama alatt"]
["átutalás","1 elem -mindig a kezdetleges utasitas alatt, ha akarjuk az elemek szamat novelni/ csokkenteni ne feledjuk a fizetesi modszerek szamat is modositani."]
["készpénz","2 elem"]
["előre utalás","3 elem"]
["utánvét kp","4 elem"]
[]
[]
[]
[]
[]
[]
["A keresesi felszolitas mindig az A20 pozicioban kell legyen (a Munka3 lapon)"]
["Kérem írja be a keresett szót (mimimum 3 betű)!"]
["Hiba jelentes mindig az A22 pozicioban kell legyen (a Munka3 lapon)",null,null,null,null,"At kene nezni a kepletek mukodeset (ezekkel nem foglalkoztam), van egy eszrevetelem, "]
["A beírt keresési kritérium kevesebb mint 3 betű!",null,null,null,null,"ha az elso termekbol rendelek 100 kartont, akkor a kedvezmeny %-ban =8, a kedvezmeny ft-ban =0"]
["A keresesi talalatok jelentese mindig az A24 pozicioban kell legyen (a Munka3 lapon)"]
["A keresési találatok piros szinű vastagított betükkel vannak megjelölve. ",null,null,null,null,null,null,null,null,"Nettó összesen (kedvezmény nélkül):",null,null,null,null,216000]
[null,null,null,null,null,null,null,null,null,"kedvezmény %-ban :",null,null,null,null,0.08]
[null,null,null,null,null,null,null,null,null,"kedvezmény Ft-ban :",null,null,null,null,0]
[null,null,null,null,null,null,null,null,null,"nettó összesen (kedvezménnyel) :",null,null,null,null,216000]
[null,null,null,null,null,null,null,null,null,"bruttó összesen (kedvezménnyel) :",null,null,null,null,274320]
["A honapok mindig az A30 poziciotol kezdodnek (a Munka3 lapon)"]
["január",31,1,"szallitasi ev",2019]
["február",29,2,"szallitasi honap",9,"szeptember",{"$f":"HonapSzam(F31)","v":9}]
["március",31,3,"szallitasi nap",16]
["április",30,4]
["május",31,5,"szallitasi datum",{"$f":"DATE(E30,E31,E32)","v":"2019-09-16"}]
["június",30,6,"mai datum",{"$f":"TODAY()","v":"2019-09-16"},{"$f":"YEAR(E35)","v":2019},{"$f":"MONTH(E35)","v":9},{"$f":"DAY(E35)","v":16}]
["július",31,7,"kulonbseg",{"$f":"IFERROR(E34-E35,0)","v":0},null,{"$f":"LOOKUP(G35,C30:C41,A30:A41)","v":"szeptember"}]
["augusztus",31,8]
["szeptember",30,9]
["október",31,10]
["november",30,11]
["december",31,12]
[]
[]
["A szallitasi datum hibajelentes mindig az A45 pozicioban kell legyen (a Munka3 lapon)"]
["A szállítási dátum későbbi kell legyen, mint a mai dátum! Javasoljuk javítsa ki a szállítási dátumot."]
["A szallitasi idopont jelentes mindig az A47 pozicioban kell legyen (a Munka3 lapon)"]
["A szállítási dátum: "]
[" nap múlva."]
["Email cim mindig az A50 pozicioban kell legyen (a Munka3 lapon)"]
["vofa@vofa.hu"]
["A tajekoztato mindig az A50 poziciotol kezdodik  (a Munka3 lapon), az elso cella pozitiv egesz szam ami egyezik a beolvasando sorok szamaval"]
["figyelni kell hogy egy sorban a szoveg lehetoleg ne haladjon tul 100 karaktert es a sorok szama 50-et"]
[{"$f":"MAX(F56:F106)*6","v":546},"- ez lesz az urlap (form)szelessege, igazodik a beirt szoveg utan, lehet valtoztatni a kepleten, ha kell"]
[{"$f":"A53-25","v":521},"- ez lesz a listamezo (listbox)szelessege, igazodik az urlap utan"]
[15]
["        Tisztelt megrendelő!",null,null,null,null,{"$f":"LEN(A56)","v":28}]
[null,null,null,null,null,{"$f":"LEN(A57)","v":0}]
["    A rendelés lebonyolításához elegendő, ha átnézi a terméklistánkat és kiválasztja ",null,null,null,null,85]
["a megfelelő termékeket.",null,null,null,null,{"$f":"LEN(A59)","v":23}]
["A megrendelendő darab vagy karton számát, be kell írni a megfelelő mezőkbe ",null,null,null,null,{"$f":"LEN(A60)","v":75}]
["és a személyes adatokkal kiegésziteni az ürlapot.",null,null,null,null,49]
["A megrendelendő számára csak a világos sárgával megjelölt mezők kitöltendők."]
["A jobb oldalon talalható parancsgombokkal, könnyen megkereshetjük a szükséges termékeket.",null,null,null,null,89]
["A Rendelés küldése emailben parancsgomb használata előtt nézzük át alaposan a kiválasztott ",null,null,null,null,91]
["termékeket és a  személyes adatokat majd nyomja meg az \"Üres sorok törlése\" gombot ",null,null,null,null,83]
[" ",null,null,null,null,1]
[null,null,null,null,null,0]
["          JÓ VÁSÁRLÁST!",null,null,null,null,23]
[null,null,null,null,null,0]
[null,null,null,null,null,0]
[null,null,null,null,null,0]
[null,null,null,null,null,0]
[null,null,null,null,null,0]
[null,null,null,null,null,0]
[null,null,null,null,null,0]
[null,null,null,null,null,0]
[null,null,null,null,null,0]
[null,null,null,null,null,0]
[null,null,null,null,null,0]
[null,null,null,null,null,0]
[null,null,null,null,null,0]
[null,null,null,null,null,0]
[null,null,null,null,null,0]
[null,null,null,null,null,0]
[null,null,null,null,null,0]
[null,null,null,null,null,0]
[null,null,null,null,null,0]
[null,null,null,null,null,0]
[null,null,null,null,null,0]
[null,null,null,null,null,0]
[null,null,null,null,null,0]
[null,null,null,null,null,0]
[null,null,null,null,null,0]
[null,null,null,null,null,0]
[null,null,null,null,null,0]
[null,null,null,null,null,0]
[null,null,null,null,null,0]
[null,null,null,null,null,0]
[null,null,null,null,null,0]
[null,null,null,null,null,0]
[null,null,null,null,null,0]
[null,null,null,null,null,0]
[null,null,null,null,null,0]
[null,null,null,null,null,0]
[null,null,null,null,null,0]
[null,null,null,null,null,0]
[]
[]
[]
[]
[]
[]
[null,null,null,null,null,0]
[null,null,null,null,null,0]
[null,null,null,null,null,0]
[null,null,null,null,null,0]
[null,null,null,null,null,0]

{"sheet":"Munka4","index":3,"n_rows":0,"n_cols":0,"rows_kept":0,"cut":false,"hidden":true,"merged":[]}

{"sheet":"Munka5","index":4,"n_rows":12,"n_cols":8,"rows_kept":12,"cut":false,"hidden":true,"merged":[]}
[]
[null,null,"Összes rendelési érték",null,{"$f":"+SUM(Árlista!H12:H485)","v":0}]
[]
[]
[null,null,"TÓL","IG","KEDVEZMÉNY",null,"INGYENES SZÁLLÍTÁS"]
[null,null,0,20000,0,null,30000,"-TÓL"]
[null,null,20001,40000,0.02]
[null,null,{"$f":"+D7+1","v":40001},60000,0.06]
[null,null,80001,10000000,0.08]
[null,null,{"$f":"+D9+1","v":10000001},10000000,0.08]
[null,null,{"$f":"+D10+1","v":10000001},10000000,0.08]
[null,null,{"$f":"+D11+1","v":10000001},10000000,8]